bitfinex/quotes_ETHUSD_20260109
["timestamp","ask_amount","ask_price","bid_price","bid_amount"]
[1767976973356,6.39549756,3127.2,3126.3,0.91441997]
[1767976973678,3.19774878,3127.2,3126.3,0.91441997]
[1767976973856,1.2176244,3127.7,3126.4,0.91341997]
[1767976974164,1.2176244,3127.7,3126.4,1.57572858]
[1767976974973,6.39467962,3127.6,3126.4,4.7742266]
[1767976975468,0.9656244,3127.5,3126.4,3.86085676]
[1767976975771,0.9656244,3127.3,3126.3,0.001]
[1767976975935,0.00080192,3126.4,3125.5,0.91341997]
[1767976976136,0.9656244,3126.2,3125.1,0.001]
[1767976976336,0.9656244,3126.0,3125.1,0.001]
[1767976976835,6.39815732,3125.9,3125.1,0.001]
[1767976977268,3.19907866,3125.9,3125.1,0.001]
[1767976978381,4.1646231,3126.0,3125.1,0.001]
[1767976978938,0.25080192,3126.4,3125.1,0.91441997]
[1767976979148,3.44941567,3126.4,3125.1,0.91441997]
[1767976979762,0.25080192,3126.4,3125.1,0.91441997]
[1767976980160,0.00080192,3126.4,3125.1,0.91441997]
[1767976980373,0.00080192,3126.4,3125.3,0.91341997]
[1767976980544,3.1980264,3127.0,3125.5,0.91341997]
[1767976980880,3.1980264,3127.0,3126.0,0.000802]
[1767976981051,0.25,3127.1,3126.0,7.56317461]
[1767976981254,0.25,3127.1,3126.1,0.75631746]
[1767976981255,3.44794158,3127.1,3126.1,0.75631746]
[1767976981451,0.25,3127.1,3126.1,0.75631746]
[1767976981653,3.19764653,3127.3,3126.2,0.91341997]
[1767976982054,3.19764653,3127.3,3126.1,0.75631746]
[1767976983075,3.19954428,3127.4,3126.2,6.39754334]
[1767976983380,0.002,3127.4,3126.4,0.98228204]
[1767976985084,0.002,3127.4,3126.5,6.39692946]
[1767976985286,0.002,3127.4,3126.6,0.251]
[1767976987079,0.002,3127.4,3126.7,3.19826014]
[1767976987392,0.002,3127.4,3126.8,0.66475678]
[1767976988454,0.002,3127.4,3126.8,0.91575678]
[1767976988659,0.002,3127.4,3126.8,0.251]
[1767976989189,0.002,3127.4,3126.6,3.19934417]
[1767976989190,0.96948649,3127.4,3126.6,0.001]
[1767976989351,0.96948649,3127.4,3126.7,0.251]
[1767976989895,0.96948649,3127.4,3126.6,0.001]
[1767976991363,0.96948649,3127.4,3126.6,3.19936243]
[1767976991579,0.002,3127.4,3126.7,0.34503624]
[1767976991968,3.19955831,3127.4,3126.7,0.34503624]
[1767976992300,0.96748649,3127.3,3126.6,0.001]
[1767976993201,3.19955831,3127.4,3126.6,0.001]
[1767976993435,3.19955831,3127.4,3126.6,0.98328204]
[1767976993436,0.002,3127.4,3126.6,0.98328204]
[1767976993690,0.002,3127.4,3126.7,0.73801158]
[1767976995474,0.002,3127.4,3126.8,3.19815786]
[1767976995986,0.002,3127.4,3126.9,0.251]
[1767976996185,0.002,3127.4,3127.0,0.98228204]
[1767976996991,0.002,3127.7,3127.0,0.98228204]
[1767976997399,0.002,3127.7,3126.9,0.251]
[1767976997556,0.002,3127.7,3127.0,3.1979533]
[1767976997752,0.002,3127.7,3127.0,6.3959066]
[1767976997956,3.19888569,3128.1,3127.0,7.37818864]
[1767976998462,0.002,3128.1,3127.0,7.37818864]
[1767976998662,3.19882908,3128.1,3127.0,7.37818864]
[1767976998862,3.19882908,3128.1,3127.1,0.87857933]
[1767976999193,4.16631557,3128.1,3127.1,0.87857933]
[1767976999490,0.96748649,3128.0,3127.1,0.87857933]
[1767976999690,3.19703315,3127.9,3127.1,0.251]
[1767976999889,0.96748649,3127.8,3126.6,3.19934175]
[1767977000063,0.96748649,3127.8,3126.7,0.251]
[1767977000265,0.96748649,3127.8,3126.9,3.19804319]
[1767977000661,0.002,3127.4,3127.0,0.251]
[1767977001015,0.002,3127.4,3127.1,0.34490432]
[1767977002209,0.002,3127.4,3126.6,0.001]
[1767977002414,0.002,3127.4,3127.0,0.251]
[1767977003124,0.002,3127.4,3126.7,3.19822684]
[1767977003432,0.002,3127.4,3126.8,3.19807436]
[1767977004437,0.002,3127.4,3126.8,0.251]
[1767977004763,0.002,3127.4,3126.9,0.34492601]
[1767977006011,0.96948649,3127.4,3126.6,0.001]
[1767977006196,4.16713187,3127.4,3126.7,0.251]
[1767977006623,0.96748649,3127.3,3126.6,0.001]
[1767977006829,0.96748649,3127.3,3126.6,0.252]
[1767977007201,0.96748649,3127.3,3126.6,0.001]
[1767977008232,0.96748649,3127.1,3126.6,0.001]
[1767977008822,4.16706677,3127.4,3126.6,0.001]
[1767977010747,7.36464705,3127.4,3126.6,0.001]
[1767977010940,0.96748649,3127.3,3126.4,0.251]
[1767977012352,0.96748649,3127.3,3126.9,0.001]
[1767977012852,3.19774878,3127.2,3126.9,0.001]
[1767977013439,7.37156821,3127.2,3126.9,0.001]
[1767977013636,0.97607065,3127.1,3126.9,0.001]
[1767977013835,0.002,3127.4,3126.9,0.001]
[1767977014862,0.002,3127.7,3127.1,0.98017538]
[1767977016947,0.002,3127.7,3127.2,0.251]
[1767977017147,0.97807065,3127.7,3127.0,0.251]
[1767977018352,0.97807065,3127.7,3126.9,0.252]
[1767977018559,0.97807065,3127.7,3126.9,0.001]
[1767977019169,0.97607065,3127.5,3126.9,0.001]
[1767977019748,0.002,3127.7,3126.9,0.98117538]
[1767977020067,0.002,3128.1,3127.1,0.98017538]
[1767977020250,3.19887971,3128.1,3127.2,0.251]
[1767977020958,0.002,3128.1,3127.2,1.23117538]
[1767977021158,0.002,3128.1,3127.3,0.44289633]
[1767977023345,3.19882874,3128.1,3127.3,0.44289633]
[1767977024054,0.002,3127.4,3127.3,0.44289633]
[1767977024237,0.002,3127.7,3127.3,0.44289633]
[1767977024443,0.002,3127.7,3127.4,0.251]
[1767977024643,0.002,3128.1,3127.4,0.251]
[1767977024879,0.002,3128.1,3127.5,0.38914657]
[1767977025375,0.002,3128.1,3127.4,0.251]
[1767977026086,0.002,3128.1,3127.3,0.44289633]
[1767977026255,0.97807065,3128.1,3127.4,0.251]
[1767977027779,3.19693094,3128.0,3127.4,0.251]
[1767977027987,0.97807065,3128.1,3127.4,0.59597438]
[1767977028150,4.17493535,3128.1,3127.4,0.251]
[1767977028474,0.002,3128.1,3127.4,3.44853868]
[1767977029783,3.19883333,3128.1,3127.4,1.24851344]
[1767977029976,0.002,3128.1,3127.5,0.99751344]
[1767977030183,0.002,3128.4,3127.7,0.99751344]
[1767977033105,0.0008096,3128.7,3127.8,0.99751344]
[1767977033307,0.0008096,3128.7,3127.9,0.251]
[1767977033510,0.9638157,3128.6,3127.6,0.44460478]
[1767977033685,0.9638157,3128.6,3127.7,0.251]
[1767977034209,3.19642,3128.5,3127.7,1.24851344]
[1767977034509,3.19706172,3128.7,3127.7,1.24851344]
[1767977034510,3.19704531,3128.7,3127.7,4.4457147]
[1767977034715,3.19704531,3128.7,3127.7,7.64295228]
[1767977034885,3.19704531,3128.7,3127.8,0.99751344]
[1767977035082,6.39328102,3128.7,3127.9,0.76429523]
[1767977035291,3.19704531,3128.7,3127.8,0.99751344]
[1767977035679,6.39328102,3128.7,3127.9,0.251]
[1767977035881,0.9638157,3128.6,3128.0,0.001]
[1767977036182,0.002,3128.4,3128.0,0.001]
[1767977039272,0.002,3128.4,3128.0,0.99851344]
[1767977040307,0.0028096,3128.7,3128.2,0.99751344]
[1767977040616,0.0028096,3128.7,3128.0,0.99851344]
[1767977041015,0.0028096,3128.7,3128.2,0.99751344]
[1767977041313,0.0028096,3128.7,3128.0,0.001]
[1767977041614,0.9666253,3128.7,3128.0,0.001]
[1767977043389,6.39263568,3128.6,3128.0,0.001]
[1767977043709,3.19631784,3128.6,3128.0,0.001]
[1767977043911,6.39263568,3128.6,3128.0,0.001]
[1767977044878,6.39263568,3128.6,3127.7,1.24655046]
[1767977046729,6.39263568,3128.6,3127.2,0.001]
[1767977046730,0.9932452,3128.5,3127.3,0.98888184]
[1767977046930,0.9932452,3128.5,3127.7,0.251]
[1767977047707,3.19652218,3128.4,3127.7,0.251]
[1767977048251,6.39304436,3128.4,3128.0,0.001]
[1767977048537,0.002,3128.3,3128.0,0.001]
[1767977050240,0.9952452,3128.3,3128.0,0.001]
[1767977050944,0.9952452,3128.3,3127.2,0.252]
[1767977051309,0.9952452,3128.3,3127.2,3.44974061]
[1767977051510,0.002,3128.3,3127.3,0.98888184]
[1767977051706,0.002,3128.3,3127.7,0.98888184]
[1767977052138,0.002,3128.3,3127.8,0.98888184]
[1767977052335,0.002,3128.6,3128.0,0.98888184]
[1767977053038,0.002,3129.0,3128.4,0.98888184]
[1767977053221,3.19794912,3129.0,3128.3,0.0008104]
[1767977053426,0.002,3129.0,3128.3,0.0008104]
[1767977053631,0.002,3129.0,3128.3,0.98969224]
[1767977054175,0.002,3129.0,3128.5,0.98888184]
[1767977054323,0.0028028,3129.3,3128.8,0.98888184]
[1767977056958,0.0028028,3129.3,3128.8,0.17529254]
[1767977057264,0.0028028,3129.3,3128.5,0.98888184]
[1767977058151,0.0028028,3129.3,3128.3,0.0008104]
[1767977058355,0.0028028,3129.3,3128.4,0.251]
[1767977059159,0.0028028,3129.3,3128.4,1.23988184]
[1767977059484,0.0028028,3129.3,3128.5,0.98888184]
[1767977059656,0.0028028,3129.3,3128.6,0.98888184]
[1767977060368,0.01274514,3128.1,3127.2,0.001]
[1767977060570,0.01274514,3127.9,3127.2,0.98988184]
[1767977060794,0.01274514,3127.7,3127.2,0.001]
[1767977061336,0.01274514,3127.5,3127.2,0.001]
[1767977063077,3.21001446,3127.7,3127.2,0.001]
[1767977063377,6.40728378,3127.7,3127.2,0.001]
[1767977063574,7.04928667,3127.7,3127.2,0.001]
[1767977063887,0.01274514,3127.5,3127.2,0.001]
[1767977064462,3.19754428,3127.4,3127.2,0.001]
[1767977064761,0.01274514,3127.3,3127.2,0.001]
[1767977064967,0.01274514,3127.3,3126.9,0.001]
[1767977065186,0.01274514,3127.1,3126.9,0.001]
[1767977065683,0.32102894,3127.2,3126.9,0.001]
[1767977065889,0.01274514,3127.3,3126.9,0.001]
[1767977066771,3.21044649,3127.3,3126.9,0.001]
[1767977066941,3.19770135,3127.3,3126.9,0.001]
[1767977067337,3.19570136,3127.3,3126.9,0.001]
[1767977067571,3.2084465,3127.3,3126.9,0.001]
[1767977068340,6.40614785,3127.3,3126.9,0.001]
[1767977068578,3.19733981,3127.6,3126.9,0.98988184]
[1767977068775,6.40744596,3127.6,3126.9,0.98988184]
[1767977069341,3.21008495,3127.6,3126.9,0.98988184]
[1767977069544,6.40744596,3127.6,3126.9,0.98988184]
[1767977069741,3.19733981,3127.6,3126.9,0.98988184]
[1767977070444,0.01274514,3127.5,3126.9,0.98988184]
[1767977071180,0.01274514,3127.3,3126.9,0.001]
[1767977071542,0.65480302,3127.3,3126.9,0.001]
[1767977072666,0.01274514,3127.1,3126.9,0.001]
[1767977073067,3.21064662,3127.1,3126.9,0.001]
[1767977074179,0.01274514,3127.1,3126.9,0.001]
[1767977074391,3.21063529,3127.1,3126.9,0.001]
[1767977074599,3.55998452,3127.1,3126.9,0.001]
[1767977074907,0.97133448,3127.0,3126.0,0.000802]
[1767977075045,3.19815786,3126.8,3126.0,0.000802]
[1767977075246,0.01274514,3126.9,3126.0,0.93885832]
[1767977075782,3.21082796,3126.9,3126.0,0.93885832]
[1767977075961,0.65480302,3126.9,3126.0,0.93885832]
[1767977076220,3.85286265,3126.9,3126.0,0.93885832]
[1767977076370,0.65480302,3126.9,3126.0,0.93885832]
[1767977076694,3.85287635,3126.9,3126.0,0.93885832]
[1767977076892,0.01274514,3127.1,3126.0,0.93885832]
[1767977077889,3.21063694,3127.1,3126.2,0.93805632]
[1767977078188,0.01274514,3127.1,3126.2,0.93805632]
[1767977078389,3.21061466,3127.1,3126.2,0.93805632]
[1767977078553,0.67984843,3127.1,3126.2,0.93805632]
[1767977078895,0.66650728,3127.1,3126.2,0.93805632]
[1767977079791,0.01274514,3127.1,3126.2,0.93805632]
[1767977080010,0.01274514,3127.1,3126.4,0.93805632]
[1767977080216,0.26274514,3127.3,3126.4,0.93805632]
[1767977080217,3.21048068,3127.3,3126.4,0.93805632]
[1767977080609,0.01274514,3127.5,3126.4,0.93805632]
[1767977080790,3.21021613,3127.5,3126.4,0.93805632]
[1767977080996,3.21021613,3127.5,3126.6,0.93805632]
[1767977082130,6.40768712,3127.5,3126.7,0.93805632]
[1767977082431,3.21021613,3127.5,3126.7,0.93805632]
[1767977082719,0.01274514,3127.5,3126.7,0.93805632]
[1767977082926,3.21021437,3127.5,3126.7,0.93805632]
[1767977083236,0.01274514,3127.5,3126.8,0.93805632]
[1767977083394,0.01074515,3127.5,3126.8,0.93805632]
[1767977083734,0.25,3127.6,3126.8,0.93805632]
[1767977084014,0.26274514,3127.6,3126.8,4.13614248]
[1767977084181,0.26274514,3127.6,3126.9,0.41361425]
[1767977084592,3.46009021,3127.6,3126.9,0.41361425]
[1767977084882,3.46009021,3127.6,3126.7,3.19820408]
[1767977084883,0.01274514,3127.4,3126.7,3.19820408]
[1767977085183,0.01274514,3127.4,3126.6,4.13635739]
[1767977085407,0.01274514,3127.4,3126.6,0.93805632]
[1767977086080,0.002,3127.3,3126.6,4.13636827]
[1767977087900,0.002,3127.3,3126.7,0.93805632]
[1767977088101,0.002,3127.3,3126.8,0.41363683]
[1767977088491,0.002,3127.6,3126.9,0.99490009]
[1767977090122,0.01474514,3127.6,3126.8,3.61175625]
[1767977090296,0.97368373,3127.5,3126.5,4.44435469]
[1767977090614,0.01274514,3127.4,3126.6,3.19836243]
[1767977090817,0.01274514,3127.4,3126.5,4.44432673]
[1767977091116,3.2103475,3127.4,3126.5,4.44432673]
[1767977091292,3.2103475,3127.4,3126.5,5.20871838]
[1767977091691,0.98642887,3127.1,3126.3,0.001]
[1767977091909,0.98642887,3126.9,3126.3,0.001]
[1767977092621,4.1845296,3126.9,3126.3,0.001]
[1767977092829,0.01274514,3126.7,3126.3,0.001]
[1767977092987,0.98642887,3126.7,3126.3,0.001]
[1767977093188,0.01274514,3126.5,3126.3,0.001]
[1767977094703,3.19856704,3126.4,3126.3,0.001]
[1767977095017,3.19856704,3126.4,3126.0,0.000802]
[1767977095018,5.06322083,3126.4,3126.0,0.000802]
[1767977095222,0.01274514,3126.2,3126.0,0.000802]
[1767977096117,0.89097006,3126.4,3126.0,0.000802]
[1767977096700,0.01274514,3126.3,3126.0,0.000802]
[1767977098515,0.89097006,3126.4,3126.0,0.000802]
[1767977099618,0.64097006,3126.4,3126.0,0.000802]
[1767977099819,0.25,3126.8,3126.0,0.99570209]
[1767977100125,0.01274514,3126.7,3126.0,0.99570209]
[1767977100833,0.97368373,3127.0,3126.1,3.19887399]
[1767977101014,3.46069483,3127.1,3126.2,0.99490009]
[1767977101336,3.55815523,3126.9,3126.0,3.1997393]
[1767977101490,4.53183896,3126.9,3126.0,3.1997393]
[1767977101930,3.55815523,3126.9,3126.0,4.19463939]
[1767977102233,0.36008914,3126.9,3126.0,4.19463939]
[1767977102406,0.01274514,3126.9,3126.0,4.19463939]
[1767977102606,3.21082662,3126.9,3126.0,0.99570209]
[1767977102808,7.38259183,3126.9,3126.0,0.99570209]
[1767977103015,0.01274514,3126.5,3126.0,0.000802]
[1767977103934,0.91872237,3126.7,3126.0,0.000802]
[1767977104233,0.01274514,3126.7,3126.0,0.000802]
[1767977104528,0.42570004,3126.7,3126.0,0.000802]
[1767977104732,0.01274514,3126.5,3126.0,0.000802]
[1767977105098,3.2112504,3126.5,3126.0,0.000802]
[1767977105427,0.01274514,3126.3,3126.0,0.000802]
[1767977106330,0.01274514,3126.5,3126.0,0.000802]
[1767977107019,0.49201627,3126.5,3126.0,0.000802]
[1767977107537,7.79493094,3126.5,3126.0,0.000802]
[1767977107844,0.91872237,3126.3,3126.0,0.000802]
[1767977108641,0.01274514,3126.1,3126.0,0.000802]
[1767977109098,3.21161913,3126.1,3126.0,0.000802]
[1767977109300,3.71041396,3126.1,3125.2,3.19979521]
[1767977109506,0.01274514,3125.9,3125.2,3.19979521]
[1767977109909,0.91872237,3125.9,3125.1,0.001]
[1767977110121,0.91872237,3125.7,3125.1,0.001]
[1767977110314,0.91872237,3125.9,3125.1,0.001]
[1767977110507,0.01274514,3125.7,3125.1,0.001]
[1767977112538,0.49201627,3125.7,3125.1,0.001]
[1767977112706,6.89059231,3125.7,3125.1,0.001]
[1767977112902,0.01274514,3125.3,3125.1,0.001]
[1767977113099,0.91872237,3125.3,3124.7,0.00082094]
[1767977113325,0.01274514,3125.1,3124.7,0.00082094]
[1767977113657,0.91872237,3125.3,3124.7,0.00082094]
[1767977114204,0.41183736,3125.2,3124.7,0.00082094]
[1767977114635,0.40983737,3125.2,3124.7,0.00082094]
[1767977114939,0.39287029,3125.2,3124.7,0.00082094]
[1767977115536,0.01274514,3125.9,3124.9,0.97893013]
[1767977115740,3.19913096,3125.9,3125.1,6.5146854]
[1767977116041,0.01274514,3125.8,3124.8,6.5146854]
[1767977116337,0.01274514,3125.8,3125.0,3.19998465]
[1767977116534,0.01274514,3125.8,3125.1,3.19987413]
[1767977116726,0.01274514,3125.8,3125.0,3.19995352]
[1767977116926,0.91872237,3125.8,3124.9,3.20005085]
[1767977117102,0.91872237,3125.8,3124.9,4.00572342]
[1767977117303,0.91872237,3125.8,3125.0,3.19997672]
[1767977118063,0.01274514,3126.1,3125.2,0.97893013]
[1767977118361,0.91872237,3126.5,3125.2,0.97893013]
[1767977118663,3.46126477,3126.5,3125.2,0.97893013]
[1767977118956,0.26274514,3126.5,3125.2,0.97893013]
[1767977119356,0.01274514,3126.5,3125.2,0.97893013]
[1767977119720,3.2112836,3126.5,3125.2,0.97893013]
[1767977119958,3.19937314,3126.4,3125.3,6.39938564]
[1767977120123,3.19937314,3126.4,3125.5,0.97893013]
[1767977120458,0.01274514,3126.1,3125.4,0.73783158]
[1767977121430,0.91872237,3126.3,3125.4,1.71676171]
[1767977121431,0.01274514,3126.3,3125.4,1.71676171]
[1767977121652,0.000802,3126.4,3125.5,0.97893013]
[1767977122250,0.000802,3126.4,3125.6,7.37770155]
[1767977122449,0.000802,3126.4,3125.7,1.71670029]
[1767977123628,0.000802,3126.4,3125.7,0.73777016]
[1767977123941,0.000802,3126.4,3125.6,3.45038571]
[1767977124124,0.91872237,3126.3,3125.4,0.73783158]
[1767977124436,0.01274514,3126.1,3125.5,3.19945189]
[1767977125073,0.01274514,3126.3,3125.6,3.19935665]
[1767977125853,0.000802,3126.4,3125.6,3.19935665]
[1767977126762,0.000802,3126.4,3125.6,6.39874236]
[1767977126957,0.000802,3126.4,3125.7,0.73776725]
[1767977127551,0.01274514,3126.3,3125.7,0.73776725]
[1767977127751,0.01274514,3126.1,3125.3,0.001]
[1767977128050,0.01274514,3126.1,3125.4,3.19952565]
[1767977128471,0.91872237,3125.6,3125.3,0.001]
[1767977129051,0.01274514,3125.4,3125.3,0.001]
[1767977129245,0.91872237,3125.6,3125.3,0.001]
[1767977129482,0.91872237,3125.4,3124.7,0.00082094]
[1767977129782,0.01274514,3125.0,3124.7,0.00082094]
[1767977130171,0.01274514,3124.8,3124.7,0.00082094]
[1767977130372,0.01274514,3124.8,3123.9,3.20209502]
[1767977130568,3.21302259,3124.8,3123.9,0.001]
[1767977130752,0.01274514,3124.6,3123.9,0.001]
[1767977131458,0.01274514,3124.8,3123.9,0.001]
[1767977132376,0.01274514,3124.6,3123.9,0.001]
[1767977132581,0.91872237,3125.0,3123.9,0.97993013]
[1767977132780,0.01274514,3124.8,3123.9,0.97993013]
[1767977132980,0.01274514,3124.8,3123.9,1.718169]
[1767977133187,0.95434412,3124.8,3123.9,0.001]
[1767977133390,0.95434412,3124.6,3123.9,0.001]
[1767977133586,0.01274514,3124.4,3123.9,0.001]
[1767977134294,0.01274514,3124.4,3124.2,0.001]
[1767977134601,0.94159898,3124.3,3123.9,0.001]
[1767977134893,0.01274514,3124.6,3123.9,0.001]
[1767977134894,0.44049586,3124.2,3123.9,0.001]
[1767977135212,0.25,3124.5,3123.9,0.001]
[1767977136687,0.25,3124.8,3123.9,0.96463417]
[1767977136901,0.01274514,3125.2,3124.0,0.96363417]
[1767977137051,0.01274514,3125.0,3124.0,0.96363417]
[1767977137886,0.00082094,3125.1,3124.0,0.96363417]
[1767977138058,0.01274514,3125.0,3124.0,0.96363417]
[1767977138682,0.01274514,3125.0,3124.1,6.40184372]
[1767977138867,0.01274514,3125.0,3124.2,0.73654779]
[1767977139255,0.01274514,3124.8,3123.9,0.001]
[1767977139457,0.01274514,3124.4,3123.9,0.001]
[1767977139689,0.01274514,3124.3,3123.9,0.001]
[1767977140699,0.01274514,3124.2,3123.9,0.001]
[1767977140900,0.26274514,3124.6,3123.9,0.96463417]
[1767977141258,0.26274514,3124.6,3123.9,0.001]
[1767977141798,0.01274514,3124.4,3123.9,0.001]
[1767977142195,0.01274514,3124.2,3123.9,0.001]
[1767977142395,0.01074514,3124.2,3123.9,0.001]
[1767977142597,0.01274514,3124.0,3123.9,0.001]
[1767977143190,0.36031767,3124.6,3123.9,0.001]
[1767977143380,0.25,3124.3,3123.9,0.001]
[1767977143822,0.01274514,3124.8,3123.9,0.96463417]
[1767977144663,0.25,3125.0,3124.0,7.36568281]
[1767977144887,0.25,3125.0,3124.1,0.96363417]
[1767977145200,0.01356608,3125.1,3124.1,0.96363417]
[1767977145201,0.00082094,3125.1,3124.1,0.96363417]
[1767977145376,0.01274514,3125.6,3124.8,0.96363417]
[1767977146310,0.01274514,3125.2,3124.7,0.00082176]
[1767977147878,3.21256136,3125.2,3124.7,0.00082176]
[1767977148091,0.01274514,3125.2,3124.7,0.00082176]
[1767977150489,3.21254446,3125.2,3124.7,0.00082176]
[1767977151024,0.25,3125.3,3124.7,0.00082176]
[1767977151390,0.248,3125.3,3124.7,0.99162506]
[1767977151590,3.19909339,3125.9,3124.7,0.99162506]
[1767977151818,0.01274514,3125.8,3124.7,0.99162506]
[1767977152119,3.46186656,3125.9,3124.7,0.99162506]
[1767977152337,3.21186656,3125.9,3124.7,0.99162506]
[1767977152624,0.01274514,3125.8,3124.7,0.99162506]
[1767977152924,0.98540484,3125.4,3124.7,0.00082176]
[1767977153223,0.01274514,3125.2,3124.7,0.00082176]
[1767977153424,0.98540484,3125.4,3124.7,0.00082176]
[1767977153425,0.01274514,3125.4,3124.7,0.00082176]
[1767977153629,0.36025084,3125.4,3124.7,0.00082176]
[1767977153795,3.55984942,3125.4,3124.7,0.00082176]
[1767977153990,0.3475057,3125.4,3124.7,0.00082176]
[1767977154299,0.01274514,3125.6,3124.7,0.00082176]
[1767977154519,0.26274514,3125.6,3124.7,0.99162506]
[1767977154708,3.21200133,3125.8,3124.7,0.99162506]
[1767977155029,0.01274514,3125.8,3124.7,0.99162506]
[1767977155191,0.26274514,3125.9,3124.7,0.99162506]
[1767977155619,0.26274514,3125.9,3124.9,0.9915309]
[1767977155824,0.26274514,3125.9,3125.1,0.9915309]
[1767977156422,0.002,3126.0,3125.1,0.9915309]
[1767977156787,0.01274514,3125.9,3125.1,0.9915309]
[1767977156991,0.01274514,3125.9,3124.8,7.39194052]
[1767977157688,3.21186293,3125.9,3124.8,7.39194052]
[1767977157886,0.01274514,3125.8,3124.9,0.76437623]
[1767977158424,0.002,3126.0,3125.1,0.9915309]
[1767977158628,0.002,3125.6,3125.1,0.9915309]
[1767977158850,0.002,3125.6,3125.0,0.001]
[1767977159623,0.002,3125.6,3125.0,6.401]
[1767977159788,0.002,3125.6,3125.1,0.71653762]
[1767977160194,0.002,3125.9,3125.2,0.9915309]
[1767977160419,0.250802,3126.4,3125.2,0.9915309]
[1767977160620,0.250802,3126.4,3125.3,0.9915309]
[1767977161525,0.25,3126.7,3125.4,0.9915309]
[1767977161732,0.25,3126.7,3126.0,0.00080208]
[1767977161938,3.46106477,3126.7,3126.0,0.00080208]
[1767977162100,0.01274514,3126.5,3126.0,0.00080208]
[1767977162297,0.01274514,3126.1,3125.1,0.71653762]
[1767977162492,0.01274514,3125.8,3125.0,3.2009166]
[1767977162703,0.01274514,3125.8,3125.0,0.001]
[1767977162897,0.01274514,3125.6,3125.0,0.001]
[1767977163445,0.01274514,3125.4,3125.0,0.001]
[1767977164202,0.01274514,3125.6,3125.0,0.001]
[1767977164810,3.63201532,3125.6,3125.0,0.001]
[1767977165041,0.98637663,3125.4,3125.0,0.001]
[1767977166216,3.63201532,3125.6,3125.0,0.001]
[1767977166217,0.432592,3125.6,3125.0,0.001]
[1767977166413,0.01274514,3125.6,3125.0,0.001]
[1767977167519,0.01274514,3125.4,3125.0,0.001]
[1767977167721,0.98637663,3125.4,3125.0,0.001]
[1767977169342,0.01274514,3125.6,3125.0,0.001]
[1767977169540,0.98637663,3125.9,3125.0,0.001]
[1767977169715,0.25,3125.8,3125.0,0.001]
[1767977170245,0.01274514,3126.1,3125.0,0.96768956]
[1767977170412,0.26274514,3126.1,3125.3,0.001]
[1767977170741,3.46164876,3126.1,3125.3,0.001]
[1767977171242,0.26274514,3126.1,3125.3,0.001]
[1767977171812,0.01274514,3126.3,3125.3,0.001]
[1767977172052,0.26274514,3126.3,3125.3,1.92775884]
[1767977172372,0.98637663,3126.1,3125.3,0.96106928]
[1767977172661,0.01274514,3125.9,3125.3,0.001]
[1767977173640,0.98637663,3125.9,3125.3,0.001]
[1767977173925,0.01274514,3125.8,3125.3,0.001]
[1767977174247,0.98637664,3125.9,3125.3,0.001]
[1767977177967,0.01274514,3125.7,3125.3,0.001]
[1767977178540,0.25,3125.8,3125.3,0.001]
[1767977179238,0.98637664,3125.9,3125.3,0.001]
[1767977181300,3.372,3127.0,3125.9,0.96668956]
[1767977181573,0.98637663,3127.1,3126.0,0.00080216]
[1767977181881,0.01274514,3127.1,3126.0,0.96749172]
[1767977182083,0.01274514,3126.9,3126.0,0.96749172]
[1767977182378,0.36026335,3127.1,3126.0,0.00080216]
[1767977182589,0.01274514,3126.9,3126.0,0.96749172]
[1767977183144,0.01274514,3126.7,3126.0,0.00080216]
[1767977183676,0.01274514,3126.9,3126.0,0.00080216]
[1767977184982,0.01274514,3126.9,3126.0,0.96749172]
[1767977186353,0.01274514,3126.7,3126.0,0.73738753]
[1767977186687,0.00080216,3126.4,3125.7,3.19928336]
[1767977187054,0.00080216,3126.4,3125.7,6.39856672]
[1767977187395,0.00080216,3126.4,3125.8,0.96668956]
[1767977188591,0.00080216,3126.4,3125.5,6.39897616]
[1767977188756,0.00080216,3126.4,3125.6,0.96668956]
[1767977189093,0.00080216,3126.4,3125.7,0.73656657]
[1767977190688,0.00080216,3126.4,3125.8,3.199181]
[1767977191488,0.00080216,3126.4,3125.9,0.96668956]
[1767977191698,0.26274514,3127.3,3126.1,0.96668956]
[1767977191854,0.01274514,3126.8,3125.8,4.16587056]
[1767977192060,0.98637663,3126.8,3126.0,0.00080224]
[1767977192581,0.01274514,3127.0,3126.0,0.00080224]
[1767977192789,0.01274514,3127.0,3126.0,0.9674918]
[1767977192991,0.26274514,3127.1,3126.2,0.96591796]
[1767977193294,0.26274514,3127.1,3126.3,0.73636659]
[1767977193883,0.26274514,3127.1,3126.3,0.73736659]
[1767977194101,0.002,3126.7,3126.3,0.73736659]
[1767977194701,0.002,3126.7,3126.3,1.70328455]
[1767977195000,0.002,3127.0,3126.4,3.19856704]
[1767977195177,0.002,3127.0,3126.4,4.00862767]
[1767977195787,0.002,3127.0,3126.4,4.97454563]
[1767977197668,0.002,3127.0,3126.4,0.81006063]
[1767977197869,0.01274514,3126.9,3126.3,0.001]
[1767977198703,0.92672428,3126.9,3126.3,0.001]
[1767977198999,0.92672428,3126.9,3126.0,0.00080224]
[1767977199000,0.01274514,3126.5,3126.0,0.00080224]
[1767977199220,0.01274514,3126.3,3126.0,0.00080224]
[1767977200307,3.21084853,3126.9,3126.0,0.00080224]
[1767977200498,0.01474514,3127.0,3126.1,0.96591796]
[1767977200802,3.46270339,3127.0,3126.1,0.96591796]
[1767977201000,3.46270339,3127.0,3126.1,4.16471531]
[1767977202074,0.26474514,3127.0,3126.1,4.16471531]
[1767977202297,0.26474514,3127.0,3126.1,4.65491746]
[1767977202704,3.46271598,3127.0,3126.1,4.65491746]
[1767977203507,3.46271598,3127.0,3126.1,7.85379145]
[1767977203508,0.26474514,3127.0,3126.1,7.85379145]
[1767977203680,0.002,3127.2,3126.2,0.96591796]
[1767977204010,0.252,3127.6,3126.6,0.96591796]
[1767977205607,0.002,3127.6,3126.7,6.39652028]
[1767977205974,3.19935686,3127.6,3126.7,3.19826014]
[1767977206487,3.19935686,3127.6,3126.7,0.001]
[1767977206488,0.01274514,3127.3,3126.7,0.001]
[1767977206803,0.01474514,3127.3,3126.7,0.001]
[1767977207171,0.01274514,3127.2,3126.7,0.001]
[1767977207701,0.002,3127.3,3126.7,0.001]